[Event "Titled Tuesday Blitz July 25 Late 2023"]
[White "Svane, Rasmus"]
[Black "Velikanov, Alexander"]
[WhiteFideId "4657101"]
[BlackFideId "2039290"]
[WhiteElo "2975"]
[BlackElo "2677"]
[Result "1-0"]
[Round "3"]
[TimeControl "180+2"]
[Date "2023.07.25"]
[WhiteClock "0:01:36"]
[BlackClock "0:00:38"]
[Board "23"]

1. Nf3 {[%clk 0:03:00]}  g6 {[%clk 0:03:00]} 2. d4 {[%clk 0:02:59]}  Bg7 {[%clk 0:03:00]} 3. e4 {[%clk 0:02:58]}  d6 {[%clk 0:02:57]} 4. Bd3 {[%clk 0:02:58]}  Nf6 {[%clk 0:02:55]} 5. O-O {[%clk 0:02:58]}  O-O {[%clk 0:02:54]} 6. h3 {[%clk 0:02:58]}  Nc6 {[%clk 0:02:53]} 7. c3 {[%clk 0:02:57]}  e5 {[%clk 0:02:52]} 8. Re1 {[%clk 0:02:57]}  Nh5 {[%clk 0:02:48]} 9. Be3 {[%clk 0:02:56]}  Nf4 {[%clk 0:02:31]} 10. Bxf4 {[%clk 0:02:56]}  exf4 {[%clk 0:02:32]} 11. Qd2 {[%clk 0:02:48]}  g5 {[%clk 0:02:29]} 12. a4 {[%clk 0:02:46]}  Qf6 {[%clk 0:02:19]} 13. Na3 {[%clk 0:02:42]}  h5 {[%clk 0:02:08]} 14. e5 {[%clk 0:02:39]}  Qh6 {[%clk 0:02:03]} 15. exd6 {[%clk 0:02:28]}  cxd6 {[%clk 0:02:04]} 16. Nb5 {[%clk 0:02:25]}  g4 {[%clk 0:02:00]} 17. hxg4 {[%clk 0:02:25]}  hxg4 {[%clk 0:02:00]} 18. Nh2 {[%clk 0:02:25]}  Bf6 {[%clk 0:01:38]} 19. Nc7 {[%clk 0:02:04]}  Kg7 {[%clk 0:01:38]} 20. Ne8+ {[%clk 0:01:55]}  Rxe8 {[%clk 0:01:22]} 21. Rxe8 {[%clk 0:01:54]}  Nxd4 {[%clk 0:01:12]} 22. cxd4 {[%clk 0:01:50]}  Bxd4 {[%clk 0:01:05]} 23. Bf5 {[%clk 0:01:39]}  Bxf2+ {[%clk 0:00:47]} 24. Qxf2 {[%clk 0:01:37]}  g3 {[%clk 0:00:38]} 25. Qd4+ {[%clk 0:01:36]} 1-0


[Site "https://www.chess.com"]

[Event "Titled Tuesday Blitz July 25 Late 2023"]
[White "Manukyan, Sargis A."]
[Black "Sjugirov, Sanan"]
[WhiteFideId "13303970"]
[BlackFideId "4189302"]
[WhiteElo "2666"]
[BlackElo "2929"]
[Result "0-1"]
[Round "3"]
[TimeControl "180+2"]
[Date "2023.07.25"]
[WhiteClock "0:00:38"]
[BlackClock "0:00:37"]
[Board "26"]

1. d4 {[%clk 0:03:00]}  Nf6 {[%clk 0:02:55]} 2. c4 {[%clk 0:03:01]}  e6 {[%clk 0:02:54]} 3. Nc3 {[%clk 0:03:02]}  Bb4 {[%clk 0:02:53]} 4. a3 {[%clk 0:03:02]}  Bxc3+ {[%clk 0:02:53]} 5. bxc3 {[%clk 0:03:03]}  b6 {[%clk 0:02:54]} 6. e3 {[%clk 0:03:04]}  Bb7 {[%clk 0:02:54]} 7. f3 {[%clk 0:03:04]}  d6 {[%clk 0:02:54]} 8. Bd3 {[%clk 0:03:05]}  Nfd7 {[%clk 0:02:55]} 9. Ne2 {[%clk 0:03:06]}  Qh4+ {[%clk 0:02:55]} 10. Ng3 {[%clk 0:03:04]}  Qe7 {[%clk 0:02:53]} 11. O-O {[%clk 0:03:04]}  h5 {[%clk 0:02:53]} 12. Ne2 {[%clk 0:03:01]}  Nc6 {[%clk 0:02:52]} 13. e4 {[%clk 0:03:01]}  h4 {[%clk 0:02:53]} 14. a4 {[%clk 0:03:01]}  Na5 {[%clk 0:02:52]} 15. h3 {[%clk 0:03:00]}  Ba6 {[%clk 0:02:50]} 16. c5 {[%clk 0:02:34]}  Bxd3 {[%clk 0:02:51]} 17. Qxd3 {[%clk 0:02:34]}  dxc5 {[%clk 0:02:50]} 18. Bf4 {[%clk 0:02:33]}  Rc8 {[%clk 0:02:22]} 19. Qa6 {[%clk 0:02:29]}  O-O {[%clk 0:02:20]} 20. Rfd1 {[%clk 0:02:24]}  e5 {[%clk 0:02:09]} 21. Be3 {[%clk 0:02:21]}  exd4 {[%clk 0:02:00]} 22. cxd4 {[%clk 0:02:21]}  Nb3 {[%clk 0:01:59]} 23. Rab1 {[%clk 0:02:18]}  Nxd4 {[%clk 0:01:58]} 24. Nxd4 {[%clk 0:01:57]}  cxd4 {[%clk 0:01:59]} 25. Rxd4 {[%clk 0:01:57]}  Nc5 {[%clk 0:01:57]} 26. Qc4 {[%clk 0:01:54]}  Ne6 {[%clk 0:01:46]} 27. Rd5 {[%clk 0:01:52]}  c6 {[%clk 0:01:36]} 28. Rd3 {[%clk 0:01:52]}  Rfd8 {[%clk 0:01:34]} 29. a5 {[%clk 0:01:50]}  Rxd3 {[%clk 0:01:31]} 30. Qxd3 {[%clk 0:01:50]}  Rd8 {[%clk 0:01:29]} 31. Qa6 {[%clk 0:01:47]}  Qa3 {[%clk 0:01:22]} 32. Bf2 {[%clk 0:01:44]}  Qa2 {[%clk 0:01:14]} 33. Qf1 {[%clk 0:01:39]}  Qxa5 {[%clk 0:01:02]} 34. Ra1 {[%clk 0:01:39]}  Qg5 {[%clk 0:00:53]} 35. Rxa7 {[%clk 0:01:38]}  c5 {[%clk 0:00:51]} 36. Rb7 {[%clk 0:01:33]}  Nf4 {[%clk 0:00:44]} 37. Be3 {[%clk 0:00:53]}  Rd1 {[%clk 0:00:39]} 38. Bxf4 {[%clk 0:00:36]}  Rxf1+ {[%clk 0:00:36]} 39. Kxf1 {[%clk 0:00:36]}  Qxf4 {[%clk 0:00:37]} 40. e5 {[%clk 0:00:37]}  Qxe5 {[%clk 0:00:35]} 41. f4 {[%clk 0:00:37]}  Qxf4+ {[%clk 0:00:35]} 42. Kg1 {[%clk 0:00:38]}  Qe3+ {[%clk 0:00:35]} 43. Kh2 {[%clk 0:00:38]}  Qe5+ {[%clk 0:00:36]} 44. g3 {[%clk 0:00:38]}  Qxg3+ {[%clk 0:00:35]} 45. Kh1 {[%clk 0:00:38]}  Qxh3+ {[%clk 0:00:35]} 46. Kg1 {[%clk 0:00:39]}  Qg3+ {[%clk 0:00:36]} 47. Kh1 {[%clk 0:00:39]}  Qf3+ {[%clk 0:00:37]} 48. Kh2 {[%clk 0:00:38]}  Qxb7 {[%clk 0:00:37]} 0-1


[Site "https://www.chess.com"]

[Event "Titled Tuesday Blitz July 25 Late 2023"]
[White "Ibarra Jerez, Jose Carlos"]
[Black "Wieczorek, Oskar"]
[WhiteFideId "2226332"]
[BlackFideId "1133950"]
[WhiteElo "2915"]
[BlackElo "2660"]
[Result "0-1"]
[Round "3"]
[TimeControl "180+2"]
[Date "2023.07.25"]
[WhiteClock "0:00:00"]
[BlackClock "0:00:05"]
[Board "27"]

1. e4 {[%clk 0:03:00]}  c5 {[%clk 0:02:58]} 2. Nf3 {[%clk 0:02:58]}  e6 {[%clk 0:02:59]} 3. d4 {[%clk 0:02:57]}  cxd4 {[%clk 0:03:00]} 4. Nxd4 {[%clk 0:02:58]}  Nf6 {[%clk 0:03:00]} 5. Nc3 {[%clk 0:02:58]}  d6 {[%clk 0:03:01]} 6. Be3 {[%clk 0:02:56]}  a6 {[%clk 0:02:59]} 7. f3 {[%clk 0:02:55]}  h5 {[%clk 0:02:59]} 8. Bc4 {[%clk 0:02:51]}  Nc6 {[%clk 0:02:58]} 9. Bb3 {[%clk 0:02:50]}  Bd7 {[%clk 0:02:58]} 10. O-O {[%clk 0:02:50]}  Be7 {[%clk 0:02:56]} 11. Nxc6 {[%clk 0:02:36]}  Bxc6 {[%clk 0:02:55]} 12. a4 {[%clk 0:02:35]}  Qc7 {[%clk 0:02:47]} 13. a5 {[%clk 0:02:32]}  Nd7 {[%clk 0:02:47]} 14. Na4 {[%clk 0:02:25]}  Rc8 {[%clk 0:02:31]} 15. Nb6 {[%clk 0:02:22]}  Nxb6 {[%clk 0:02:30]} 16. axb6 {[%clk 0:02:07]}  Qd7 {[%clk 0:02:30]} 17. Qd2 {[%clk 0:02:03]}  Bb5 {[%clk 0:02:08]} 18. Rfd1 {[%clk 0:01:58]}  Bc4 {[%clk 0:01:59]} 19. Ba4 {[%clk 0:01:41]}  Bb5 {[%clk 0:01:59]} 20. b3 {[%clk 0:01:37]}  Bf6 {[%clk 0:01:45]} 21. Bd4 {[%clk 0:01:25]}  Bxd4+ {[%clk 0:00:54]} 22. Qxd4 {[%clk 0:01:23]}  e5 {[%clk 0:00:52]} 23. Qb4 {[%clk 0:01:05]}  Bxa4 {[%clk 0:00:38]} 24. Rxa4 {[%clk 0:00:31]}  Rxc2 {[%clk 0:00:27]} 25. Rxd6 {[%clk 0:00:29]}  Qe7 {[%clk 0:00:25]} 26. Rxa6 {[%clk 0:00:13]}  O-O {[%clk 0:00:06]} 27. Ra1 {[%clk 0:00:11]}  Qg5 {[%clk 0:00:05]} 28. g3 {[%clk 0:00:00]}  Qe3+ {[%clk 0:00:05]} 0-1


[Site "https://www.chess.com"]

[Event "Titled Tuesday Blitz July 25 Late 2023"]
[White "Bernabeu Lopez, Carlos Javier"]
[Black "demon64fields"]
[WhiteFideId "2235366"]
[WhiteElo "2656"]
[BlackElo "2906"]
[Result "1/2-1/2"]
[Round "3"]
[TimeControl "180+2"]
[Date "2023.07.25"]
[WhiteClock "0:00:31"]
[BlackClock "0:00:06"]
[Board "28"]

1. e4 {[%clk 0:03:00]}  g6 {[%clk 0:02:57]} 2. d4 {[%clk 0:03:00]}  Bg7 {[%clk 0:02:57]} 3. Nc3 {[%clk 0:03:01]}  c6 {[%clk 0:02:58]} 4. Be3 {[%clk 0:02:54]}  d5 {[%clk 0:02:58]} 5. e5 {[%clk 0:02:55]}  f6 {[%clk 0:02:57]} 6. f4 {[%clk 0:02:55]}  Nh6 {[%clk 0:02:57]} 7. Nf3 {[%clk 0:02:55]}  Bg4 {[%clk 0:02:57]} 8. Be2 {[%clk 0:02:55]}  O-O {[%clk 0:02:56]} 9. O-O {[%clk 0:02:55]}  Nf5 {[%clk 0:02:56]} 10. Bf2 {[%clk 0:02:56]}  Bh6 {[%clk 0:02:55]} 11. g3 {[%clk 0:02:55]}  Nd7 {[%clk 0:02:45]} 12. Kg2 {[%clk 0:02:50]}  fxe5 {[%clk 0:02:44]} 13. Nxe5 {[%clk 0:02:43]}  Nxe5 {[%clk 0:02:41]} 14. fxe5 {[%clk 0:02:00]}  Bxe2 {[%clk 0:02:41]} 15. Qxe2 {[%clk 0:02:01]}  e6 {[%clk 0:02:40]} 16. g4 {[%clk 0:01:56]}  Nh4+ {[%clk 0:02:35]} 17. Bxh4 {[%clk 0:01:55]}  Qxh4 {[%clk 0:02:36]} 18. h3 {[%clk 0:01:56]}  Rf4 {[%clk 0:02:25]} 19. Rxf4 {[%clk 0:01:53]}  Bxf4 {[%clk 0:02:26]} 20. Qd3 {[%clk 0:01:53]}  Rf8 {[%clk 0:02:00]} 21. Rf1 {[%clk 0:01:53]}  Bh6 {[%clk 0:01:59]} 22. Rxf8+ {[%clk 0:01:52]}  Kxf8 {[%clk 0:02:00]} 23. Nd1 {[%clk 0:01:51]}  Qe1 {[%clk 0:01:59]} 24. Qf3+ {[%clk 0:01:51]}  Kg8 {[%clk 0:01:41]} 25. Nf2 {[%clk 0:01:43]}  Bg5 {[%clk 0:01:37]} 26. Nd3 {[%clk 0:01:39]}  Qb1 {[%clk 0:01:23]} 27. Qf2 {[%clk 0:01:39]}  b6 {[%clk 0:01:07]} 28. a3 {[%clk 0:01:36]}  Qd1 {[%clk 0:01:03]} 29. Nb4 {[%clk 0:01:33]}  c5 {[%clk 0:00:58]} 30. dxc5 {[%clk 0:01:32]}  bxc5 {[%clk 0:00:58]} 31. Nc6 {[%clk 0:01:32]}  d4 {[%clk 0:00:52]} 32. b3 {[%clk 0:01:27]}  Kg7 {[%clk 0:00:38]} 33. Nxa7 {[%clk 0:01:19]}  h5 {[%clk 0:00:31]} 34. gxh5 {[%clk 0:01:15]}  Qxh5 {[%clk 0:00:32]} 35. Nc6 {[%clk 0:01:12]}  Bh4 {[%clk 0:00:30]} 36. Qf3 {[%clk 0:01:04]}  Qg5+ {[%clk 0:00:30]} 37. Kh2 {[%clk 0:01:05]}  Qd2+ {[%clk 0:00:27]} 38. Qg2 {[%clk 0:01:03]}  Qf4+ {[%clk 0:00:25]} 39. Kg1 {[%clk 0:01:04]}  Bg3 {[%clk 0:00:23]} 40. Qf1 {[%clk 0:00:51]}  Qe3+ {[%clk 0:00:18]} 41. Kg2 {[%clk 0:00:51]}  Bf4 {[%clk 0:00:18]} 42. Qf3 {[%clk 0:00:48]}  Qc1 {[%clk 0:00:17]} 43. Nd8 {[%clk 0:00:43]}  Qxc2+ {[%clk 0:00:17]} 44. Kg1 {[%clk 0:00:40]}  Be3+ {[%clk 0:00:17]} 45. Kf1 {[%clk 0:00:37]}  Qb1+ {[%clk 0:00:15]} 46. Ke2 {[%clk 0:00:36]}  Qc2+ {[%clk 0:00:14]} 47. Kf1 {[%clk 0:00:36]}  Qxb3 {[%clk 0:00:14]} 48. Qf6+ {[%clk 0:00:30]}  Kh6 {[%clk 0:00:13]} 49. Qh4+ {[%clk 0:00:30]}  Kg7 {[%clk 0:00:13]} 50. Qf6+ {[%clk 0:00:31]}  Kh7 {[%clk 0:00:14]} 51. Qe7+ {[%clk 0:00:30]}  Kh6 {[%clk 0:00:06]} 52. Qh4+ {[%clk 0:00:31]}  Kg7 {[%clk 0:00:06]} 53. Qf6+ {[%clk 0:00:31]} 1/2-1/2


[Site "https://www.chess.com"]

[Event "Titled Tuesday Blitz July 25 Late 2023"]
[White "Taghizadeh, Rayan"]
[Black "Maksimovic, Bojan"]
[WhiteFideId "2054019"]
[BlackFideId "14408120"]
[WhiteElo "2634"]
[BlackElo "2895"]
[Result "0-1"]
[Round "3"]
[TimeControl "180+2"]
[Date "2023.07.25"]
[WhiteClock "0:00:04"]
[BlackClock "0:00:12"]
[Board "29"]

1. e4 {[%clk 0:03:00]}  c5 {[%clk 0:02:59]} 2. Nf3 {[%clk 0:03:01]}  e6 {[%clk 0:02:59]} 3. d4 {[%clk 0:02:59]}  cxd4 {[%clk 0:03:00]} 4. Qxd4 {[%clk 0:03:00]}  Nc6 {[%clk 0:02:59]} 5. Qe3 {[%clk 0:03:00]}  Nf6 {[%clk 0:02:55]} 6. Bb5 {[%clk 0:03:01]}  Qa5+ {[%clk 0:02:41]} 7. Nc3 {[%clk 0:03:00]}  Bb4 {[%clk 0:02:41]} 8. Bxc6 {[%clk 0:02:51]}  dxc6 {[%clk 0:02:21]} 9. Bd2 {[%clk 0:02:44]}  Qb6 {[%clk 0:02:06]} 10. Qe2 {[%clk 0:02:34]}  O-O {[%clk 0:01:57]} 11. O-O {[%clk 0:02:23]}  Qc7 {[%clk 0:01:25]} 12. e5 {[%clk 0:02:15]}  Nd7 {[%clk 0:01:24]} 13. Nb5 {[%clk 0:02:06]}  cxb5 {[%clk 0:01:22]} 14. Bxb4 {[%clk 0:02:06]}  Re8 {[%clk 0:01:10]} 15. Qxb5 {[%clk 0:01:59]}  a6 {[%clk 0:01:10]} 16. Qe2 {[%clk 0:01:54]}  b5 {[%clk 0:01:05]} 17. Bd6 {[%clk 0:01:46]}  Qb6 {[%clk 0:00:57]} 18. Qe3 {[%clk 0:01:45]}  Qxe3 {[%clk 0:00:54]} 19. fxe3 {[%clk 0:01:46]}  Bb7 {[%clk 0:00:55]} 20. Nd4 {[%clk 0:01:46]}  Rac8 {[%clk 0:00:51]} 21. a4 {[%clk 0:01:46]}  b4 {[%clk 0:00:49]} 22. a5 {[%clk 0:01:37]}  Nc5 {[%clk 0:00:47]} 23. Rfd1 {[%clk 0:01:25]}  Be4 {[%clk 0:00:37]} 24. Rd2 {[%clk 0:01:04]}  g5 {[%clk 0:00:32]} 25. Rf1 {[%clk 0:00:39]}  Kg7 {[%clk 0:00:30]} 26. g3 {[%clk 0:00:34]}  h6 {[%clk 0:00:29]} 27. h4 {[%clk 0:00:34]}  Bg6 {[%clk 0:00:23]} 28. Kh2 {[%clk 0:00:33]}  Ne4 {[%clk 0:00:14]} 29. Rdd1 {[%clk 0:00:29]}  Nc5 {[%clk 0:00:14]} 30. Rf2 {[%clk 0:00:24]}  Kg8 {[%clk 0:00:14]} 31. Kh3 {[%clk 0:00:23]}  Kg7 {[%clk 0:00:13]} 32. g4 {[%clk 0:00:23]}  Kg8 {[%clk 0:00:13]} 33. h5 {[%clk 0:00:23]}  Ne4 {[%clk 0:00:08]} 34. Rf3 {[%clk 0:00:19]}  Bh7 {[%clk 0:00:07]} 35. Bxb4 {[%clk 0:00:09]}  f6 {[%clk 0:00:08]} 36. exf6 {[%clk 0:00:09]}  Kf7 {[%clk 0:00:09]} 37. Rff1 {[%clk 0:00:08]}  Red8 {[%clk 0:00:09]} 38. Nf3 {[%clk 0:00:08]}  Rxd1 {[%clk 0:00:09]} 39. Ne5+ {[%clk 0:00:09]}  Ke8 {[%clk 0:00:08]} 40. Rxd1 {[%clk 0:00:10]}  Bg8 {[%clk 0:00:08]} 41. Rf1 {[%clk 0:00:10]}  Bf7 {[%clk 0:00:08]} 42. c3 {[%clk 0:00:09]}  Rd8 {[%clk 0:00:08]} 43. Be7 {[%clk 0:00:10]}  Rd2 {[%clk 0:00:08]} 44. Nf3 {[%clk 0:00:08]}  Rxb2 {[%clk 0:00:07]} 45. Nd4 {[%clk 0:00:08]}  e5 {[%clk 0:00:07]} 46. Nf5 {[%clk 0:00:08]}  Bc4 {[%clk 0:00:07]} 47. Re1 {[%clk 0:00:06]}  Nf2+ {[%clk 0:00:05]} 48. Kg3 {[%clk 0:00:06]}  Ne4+ {[%clk 0:00:06]} 49. Kf3 {[%clk 0:00:07]}  Bd5 {[%clk 0:00:06]} 50. Rd1 {[%clk 0:00:04]}  Nxf6+ {[%clk 0:00:06]} 51. e4 {[%clk 0:00:03]}  Bxe4+ {[%clk 0:00:06]} 52. Ke3 {[%clk 0:00:03]}  Bxf5 {[%clk 0:00:07]} 53. Bxf6 {[%clk 0:00:04]}  Bxg4 {[%clk 0:00:07]} 54. Rd8+ {[%clk 0:00:04]}  Kf7 {[%clk 0:00:07]} 55. Bxe5 {[%clk 0:00:04]}  Bxh5 {[%clk 0:00:08]} 56. Rd7+ {[%clk 0:00:04]}  Ke6 {[%clk 0:00:08]} 57. Rh7 {[%clk 0:00:05]}  Kxe5 {[%clk 0:00:08]} 58. Rxh6 {[%clk 0:00:05]}  Bd1 {[%clk 0:00:08]} 59. Rxa6 {[%clk 0:00:05]}  Re2+ {[%clk 0:00:08]} 60. Kd3 {[%clk 0:00:05]}  g4 {[%clk 0:00:09]} 61. Rg6 {[%clk 0:00:05]}  Kf5 {[%clk 0:00:09]} 62. Rg8 {[%clk 0:00:05]}  Ra2 {[%clk 0:00:10]} 63. Rf8+ {[%clk 0:00:06]}  Kg5 {[%clk 0:00:10]} 64. Rg8+ {[%clk 0:00:06]}  Kf4 {[%clk 0:00:11]} 65. Ra8 {[%clk 0:00:06]}  Be2+ {[%clk 0:00:10]} 66. Kd4 {[%clk 0:00:05]}  g3 {[%clk 0:00:11]} 67. Rf8+ {[%clk 0:00:06]}  Kg4 {[%clk 0:00:12]} 68. Ke3 {[%clk 0:00:06]}  Bd1 {[%clk 0:00:11]} 69. Rg8+ {[%clk 0:00:07]}  Kh4 {[%clk 0:00:12]} 70. Rh8+ {[%clk 0:00:07]}  Bh5 {[%clk 0:00:12]} 71. Ra8 {[%clk 0:00:06]}  g2 {[%clk 0:00:12]} 72. Rg8 {[%clk 0:00:07]}  Kh3 {[%clk 0:00:12]} 73. a6 {[%clk 0:00:06]}  Rxa6 {[%clk 0:00:12]} 74. Kf2 {[%clk 0:00:04]}  Rf6+ {[%clk 0:00:12]} 0-1


[Site "https://www.chess.com"]

[Event "Titled Tuesday Blitz July 25 Late 2023"]
[White "Grigoriants, Sergey"]
[Black "Danielyan, Vahe"]
[WhiteFideId "4130804"]
[BlackFideId "13304828"]
[WhiteElo "2894"]
[BlackElo "2631"]
[Result "0-1"]
[Round "3"]
[TimeControl "180+2"]
[Date "2023.07.25"]
[WhiteClock "0:00:00"]
[BlackClock "0:01:14"]
[Board "30"]

1. d4 {[%clk 0:02:52]}  Nf6 {[%clk 0:02:59]} 2. c4 {[%clk 0:02:49]}  g6 {[%clk 0:02:58]} 3. f3 {[%clk 0:02:48]}  d6 {[%clk 0:02:57]} 4. e4 {[%clk 0:02:48]}  Bg7 {[%clk 0:02:58]} 5. Nc3 {[%clk 0:02:48]}  O-O {[%clk 0:02:58]} 6. Bg5 {[%clk 0:02:45]}  c6 {[%clk 0:02:57]} 7. Qd2 {[%clk 0:02:44]}  a6 {[%clk 0:02:57]} 8. h4 {[%clk 0:02:30]}  b5 {[%clk 0:02:55]} 9. g4 {[%clk 0:02:29]}  Nbd7 {[%clk 0:02:50]} 10. h5 {[%clk 0:02:29]}  e5 {[%clk 0:02:40]} 11. d5 {[%clk 0:02:22]}  b4 {[%clk 0:02:39]} 12. Nd1 {[%clk 0:02:11]}  cxd5 {[%clk 0:02:35]} 13. cxd5 {[%clk 0:02:11]}  a5 {[%clk 0:02:32]} 14. Bb5 {[%clk 0:02:07]}  Nc5 {[%clk 0:02:16]} 15. Nf2 {[%clk 0:02:03]}  Ba6 {[%clk 0:02:13]} 16. Bxa6 {[%clk 0:01:52]}  Rxa6 {[%clk 0:02:14]} 17. Rc1 {[%clk 0:01:51]}  Qb6 {[%clk 0:02:10]} 18. Ne2 {[%clk 0:01:43]}  Qb5 {[%clk 0:02:07]} 19. Kf1 {[%clk 0:01:26]}  a4 {[%clk 0:02:04]} 20. Kg2 {[%clk 0:01:24]}  a3 {[%clk 0:02:02]} 21. b3 {[%clk 0:01:24]}  Ra7 {[%clk 0:02:01]} 22. Rc4 {[%clk 0:01:22]}  Rb8 {[%clk 0:01:58]} 23. Be3 {[%clk 0:01:17]}  Rc7 {[%clk 0:01:53]} 24. hxg6 {[%clk 0:01:10]}  fxg6 {[%clk 0:01:52]} 25. Rhc1 {[%clk 0:01:10]}  Bf8 {[%clk 0:01:44]} 26. R1c2 {[%clk 0:01:04]}  Rf7 {[%clk 0:01:39]} 27. Nd3 {[%clk 0:01:00]}  Nxd3 {[%clk 0:01:37]} 28. Qxd3 {[%clk 0:01:00]}  Qd7 {[%clk 0:01:37]} 29. Ng3 {[%clk 0:00:58]}  h5 {[%clk 0:01:34]} 30. gxh5 {[%clk 0:00:41]}  Nxh5 {[%clk 0:01:35]} 31. Qd2 {[%clk 0:00:33]}  Nf4+ {[%clk 0:01:31]} 32. Bxf4 {[%clk 0:00:30]}  Rxf4 {[%clk 0:01:28]} 33. Rc7 {[%clk 0:00:27]}  Qd8 {[%clk 0:01:29]} 34. Ra7 {[%clk 0:00:05]}  Qf6 {[%clk 0:01:26]} 35. Qd3 {[%clk 0:00:04]}  Rh4 {[%clk 0:01:24]} 36. Rcc7 {[%clk 0:00:03]}  Qh8 {[%clk 0:01:22]} 37. Nf1 {[%clk 0:00:03]}  Rh1 {[%clk 0:01:19]} 38. Qe3 {[%clk 0:00:02]}  Qh3+ {[%clk 0:01:15]} 39. Kf2 {[%clk 0:00:00]}  Qxf1+ {[%clk 0:01:14]} 0-1


[Site "https://www.chess.com"]

[Event "Titled Tuesday Blitz July 25 Late 2023"]
[White "Sochacki, Christophe"]
[Black "Rodrigue-Lemieux, Shawn"]
[WhiteFideId "662569"]
[BlackFideId "2620049"]
[WhiteElo "2627"]
[BlackElo "2893"]
[Result "0-1"]
[Round "3"]
[TimeControl "180+2"]
[Date "2023.07.25"]
[WhiteClock "0:00:00"]
[BlackClock "0:00:58"]
[Board "31"]

1. c4 {[%clk 0:02:59]}  h5 {[%clk 0:03:00]} 2. Nc3 {[%clk 0:02:58]}  h4 {[%clk 0:03:00]} 3. d4 {[%clk 0:02:58]}  a5 {[%clk 0:02:59]} 4. h3 {[%clk 0:02:56]}  e6 {[%clk 0:02:58]} 5. Nf3 {[%clk 0:02:56]}  Bb4 {[%clk 0:02:58]} 6. Bg5 {[%clk 0:02:47]}  Be7 {[%clk 0:02:58]} 7. Bf4 {[%clk 0:02:48]}  g5 {[%clk 0:02:54]} 8. Be5 {[%clk 0:02:36]}  Rh6 {[%clk 0:02:54]} 9. e4 {[%clk 0:02:30]}  b6 {[%clk 0:02:51]} 10. Bh2 {[%clk 0:02:21]}  Bb7 {[%clk 0:02:50]} 11. Qd2 {[%clk 0:02:16]}  d6 {[%clk 0:02:43]} 12. Bd3 {[%clk 0:02:11]}  Nd7 {[%clk 0:02:39]} 13. O-O-O {[%clk 0:02:06]}  a4 {[%clk 0:02:28]} 14. Kb1 {[%clk 0:01:58]}  a3 {[%clk 0:02:24]} 15. b3 {[%clk 0:01:58]}  c5 {[%clk 0:02:14]} 16. Nb5 {[%clk 0:01:53]}  Qb8 {[%clk 0:02:08]} 17. Nxg5 {[%clk 0:01:43]}  cxd4 {[%clk 0:02:06]} 18. Nxd4 {[%clk 0:01:33]}  Nc5 {[%clk 0:01:59]} 19. Bc2 {[%clk 0:01:30]}  Rg6 {[%clk 0:01:54]} 20. Ndf3 {[%clk 0:01:08]}  e5 {[%clk 0:01:50]} 21. Rhe1 {[%clk 0:01:04]}  Qd8 {[%clk 0:01:43]} 22. Nxf7 {[%clk 0:00:44]}  Kxf7 {[%clk 0:01:42]} 23. Bxe5 {[%clk 0:00:45]}  dxe5 {[%clk 0:01:38]} 24. Nxe5+ {[%clk 0:00:45]}  Kg7 {[%clk 0:01:38]} 25. Qc3 {[%clk 0:00:37]}  Bf6 {[%clk 0:01:27]} 26. Rxd8 {[%clk 0:00:36]}  Rxd8 {[%clk 0:01:28]} 27. f4 {[%clk 0:00:31]}  Rxg2 {[%clk 0:01:26]} 28. Qb4 {[%clk 0:00:21]}  Rdd2 {[%clk 0:01:07]} 29. Qxb6 {[%clk 0:00:12]}  Rxc2 {[%clk 0:01:06]} 30. Qxc5 {[%clk 0:00:08]}  Rb2+ {[%clk 0:01:07]} 31. Kc1 {[%clk 0:00:08]}  Rxa2 {[%clk 0:01:08]} 32. Qd4 {[%clk 0:00:04]}  Rgb2 {[%clk 0:01:01]} 33. Rg1+ {[%clk 0:00:03]}  Kh7 {[%clk 0:01:01]} 34. Qd7+ {[%clk 0:00:03]}  Ne7 {[%clk 0:01:00]} 35. Rg7+ {[%clk 0:00:00]}  Bxg7 {[%clk 0:00:58]} 0-1


[Site "https://www.chess.com"]

[Event "Titled Tuesday Blitz July 25 Late 2023"]
[White "Attacker_2006"]
[Black "Fressinet, Laurent"]
[BlackFideId "608742"]
[WhiteElo "2550"]
[BlackElo "2884"]
[Result "0-1"]
[Round "3"]
[TimeControl "180+2"]
[Date "2023.07.25"]
[WhiteClock "0:00:11"]
[BlackClock "0:01:18"]
[Board "33"]

1. e4 {[%clk 0:03:00]}  c5 {[%clk 0:02:53]} 2. Nf3 {[%clk 0:02:59]}  Nc6 {[%clk 0:02:52]} 3. Bc4 {[%clk 0:02:59]}  g6 {[%clk 0:02:48]} 4. c3 {[%clk 0:02:40]}  Bg7 {[%clk 0:02:46]} 5. O-O {[%clk 0:02:39]}  Nf6 {[%clk 0:02:30]} 6. e5 {[%clk 0:02:36]}  Nh5 {[%clk 0:02:30]} 7. d4 {[%clk 0:02:30]}  d5 {[%clk 0:02:27]} 8. exd6 {[%clk 0:02:26]}  Qxd6 {[%clk 0:02:24]} 9. Ng5 {[%clk 0:02:15]}  O-O {[%clk 0:02:22]} 10. Ne4 {[%clk 0:02:16]}  Qc7 {[%clk 0:02:18]} 11. Nxc5 {[%clk 0:02:05]}  e5 {[%clk 0:02:17]} 12. Be3 {[%clk 0:01:50]}  exd4 {[%clk 0:02:15]} 13. cxd4 {[%clk 0:01:51]}  Nxd4 {[%clk 0:02:14]} 14. Bxd4 {[%clk 0:01:46]}  Rd8 {[%clk 0:02:13]} 15. Nb3 {[%clk 0:00:49]}  Bxd4 {[%clk 0:02:08]} 16. Qc2 {[%clk 0:00:34]}  Bf5 {[%clk 0:02:05]} 17. Qc1 {[%clk 0:00:30]}  Rac8 {[%clk 0:01:59]} 18. Na3 {[%clk 0:00:22]}  Bg7 {[%clk 0:01:46]} 19. Be2 {[%clk 0:00:17]}  Qxc1 {[%clk 0:01:38]} 20. Raxc1 {[%clk 0:00:18]}  Rxc1 {[%clk 0:01:37]} 21. Nxc1 {[%clk 0:00:18]}  Nf4 {[%clk 0:01:32]} 22. Bf3 {[%clk 0:00:18]}  Bxb2 {[%clk 0:01:30]} 23. Nc4 {[%clk 0:00:19]}  Bxc1 {[%clk 0:01:19]} 24. Rxc1 {[%clk 0:00:20]}  Rc8 {[%clk 0:01:19]} 25. Bxb7 {[%clk 0:00:14]}  Ne2+ {[%clk 0:01:17]} 26. Kf1 {[%clk 0:00:14]}  Nxc1 {[%clk 0:01:18]} 27. Bxc8 {[%clk 0:00:11]}  Bxc8 {[%clk 0:01:18]} 0-1


[Site "https://www.chess.com"]